fUST/lending_fUST_20240424
["ID","MTS","AMOUNT","RATE_DAILY","PERIOD"]
[323340188,1713906643791,-500.0,0.00019178,2]
[323340190,1713906643800,-500.0,0.00019178,2]
[323340191,1713906643809,-204.32888389,0.00019178,2]
[323340193,1713906643818,-543.7,0.00019178,2]
[323340195,1713906643828,-500.0,0.00019178,2]
[323340197,1713906643837,-500.0,0.00019178,2]
[323340199,1713906643846,-500.0,0.00019178,2]
[323340201,1713906643855,-500.0,0.00019178,2]
[323340203,1713906643864,-892.02,0.00019178,2]
[323340205,1713906643873,-226.92168069,0.00019178,2]
[323340207,1713906643882,-2080.56,0.00019178,2]
[323340209,1713906643891,-7466.61,0.00019178,2]
[323340211,1713906643901,-500.0,0.00019178,2]
[323340213,1713906643910,-10964.76,0.00019178,2]
[323340215,1713906643920,-2008.81,0.00019178,2]
[323340217,1713906643930,-6940.32,0.00019178,2]
[323340219,1713906643939,-500.0,0.00019178,2]
[323340221,1713906643950,-726.26,0.00019178,2]
[323340223,1713906643959,-500.0,0.00019178,2]
[323340225,1713906643969,-888.98,0.00019178,2]
[323340227,1713906643978,-500.0,0.00019178,2]
[323340229,1713906643987,-500.0,0.00019178,2]
[323340231,1713906643996,-500.0,0.00019178,2]
[323340233,1713906644006,-514.00412393,0.00019178,2]
[323340236,1713906644015,-500.0,0.00019178,2]
[323340239,1713906644024,-1789.94,0.00019178,2]
[323340241,1713906644032,-500.0,0.00019178,2]
[323340243,1713906644041,-17149.67,0.00019178,2]
[323340245,1713906644051,-14555.01,0.00019178,2]
[323340247,1713906644060,-200.05707191,0.00019178,2]
[323340249,1713906644069,-500.0,0.00019178,2]
[323340251,1713906644078,-500.0,0.00019178,2]
[323340253,1713906644087,-500.0,0.00019178,2]
[323340255,1713906644096,-486.866652,0.00019178,2]
[323340257,1713906644105,-1180.31,0.00019178,2]
[323340259,1713906644115,-7963.5,0.00019178,2]
[323340261,1713906644125,-500.0,0.00019178,2]
[323340263,1713906644134,-162.016383,0.00019178,2]
[323340265,1713906644143,-186.433666,0.00019178,2]
[323340267,1713906644154,-5000.0,0.000193,2]
[323340269,1713906644163,-500.0,0.00019451,2]
[323340270,1713906644172,-473.82154476,0.00019451,2]
[323340273,1713906644181,-500.0,0.00019451,2]
[323340274,1713906644190,-267.04824333,0.00019451,2]
[323340277,1713906644201,-500.0,0.00019451,2]
[323340279,1713906644212,-622.45296751,0.00019451,2]
[323340280,1713906644221,-500.0,0.00019451,2]
[323340282,1713906644230,-366.10527599,0.00019451,2]
[323340285,1713906644239,-500.0,0.00019451,2]
[323340286,1713906644249,-500.0,0.00019451,2]
[323340288,1713906644259,-500.0,0.00019451,2]
[323340291,1713906644269,-500.0,0.00019451,2]
[323340292,1713906644278,-500.0,0.00019451,2]
[323340294,1713906644288,-500.0,0.00019451,2]
[323340297,1713906644298,-500.0,0.00019452,2]
[323340298,1713906644307,-500.0,0.00019452,2]
[323340301,1713906644317,-574.74543651,0.00019452,2]
[323340303,1713906644328,-500.0,0.00019452,2]
[323340305,1713906644337,-520.67,0.00019452,2]
[323340307,1713906644346,-500.0,0.00019452,2]
[323340308,1713906644355,-500.0,0.00019452,2]
[323340311,1713906644364,-657.21,0.00019452,2]
[323340313,1713906644374,-904.57,0.00019452,2]
[323340314,1713906644383,-500.0,0.00019452,2]
[323340316,1713906644393,-513.66,0.00019452,2]
[323340318,1713906644402,-500.0,0.00019452,2]
[323340320,1713906644411,-580.19,0.00019452,2]
[323340322,1713906644420,-589.6,0.00019452,2]
[323340324,1713906644429,-500.0,0.00019452,2]
[323340326,1713906644439,-500.0,0.00019452,2]
[323340328,1713906644448,-1834.44,0.00019452,2]
[323340330,1713906644457,-500.0,0.00019452,2]
[323340332,1713906644466,-500.0,0.00019452,2]
[323340334,1713906644475,-500.0,0.00019452,2]
[323340336,1713906644485,-279.59359515,0.00019452,2]
[323340338,1713906644494,-500.0,0.00019452,2]
[323340340,1713906644504,-500.0,0.00019452,2]
[323340342,1713906644513,-500.0,0.00019452,2]
[323340344,1713906644523,-500.0,0.00019452,2]
[323340346,1713906644532,-981.79,0.00019452,2]
[323340348,1713906644542,-500.0,0.00019452,2]
[323340350,1713906644551,-500.0,0.00019452,2]
[323340352,1713906644560,-500.0,0.00019452,2]
[323340354,1713906644570,-500.0,0.00019452,2]
[323340357,1713906644580,-527.18,0.00019452,2]
[323340359,1713906644590,-500.0,0.00019452,2]
[323340360,1713906644600,-158.48390408,0.00019452,2]
[323340362,1713906644609,-500.0,0.00019452,2]
[323340364,1713906644619,-500.0,0.00019452,2]
[323340366,1713906644628,-494.39986204,0.00019452,2]
[323340368,1713906644640,-500.0,0.00019452,2]
[323340370,1713906644649,-500.0,0.00019452,2]
[323340372,1713906644658,-500.0,0.00019452,2]
[323340374,1713906644668,-504.27,0.00019452,2]
[323340376,1713906644678,-500.0,0.00019452,2]
[323340378,1713906644687,-500.0,0.00019452,2]
[323340380,1713906644697,-500.0,0.00019452,2]
[323340382,1713906644706,-500.0,0.00019452,2]
[323340384,1713906644715,-500.0,0.00019452,2]
[323340386,1713906644725,-500.0,0.00019452,2]
[323340388,1713906644735,-500.0,0.00019452,2]
[323340390,1713906644743,-500.0,0.00019452,2]
[323340392,1713906644752,-500.0,0.00019452,2]
[323340394,1713906644761,-500.0,0.00019452,2]
[323340396,1713906644770,-1837.74,0.00019452,2]
[323340398,1713906644779,-2077.29,0.00019452,2]
[323340400,1713906644789,-500.0,0.00019452,2]
[323340402,1713906644799,-500.0,0.00019452,2]
[323340404,1713906644809,-500.0,0.00019452,2]
[323340407,1713906644819,-500.0,0.00019452,2]
[323340423,1713906644956,-500.0,0.00019452,2]
[323340425,1713906644966,-500.0,0.00019452,2]
[323340427,1713906644975,-500.0,0.00019452,2]
[323340428,1713906644985,-500.0,0.00019452,2]
[323340430,1713906644994,-500.0,0.00019452,2]
[323340432,1713906645003,-847.99,0.00019452,2]
[323340434,1713906645013,-500.0,0.00019452,2]
[323340436,1713906645022,-1200.21,0.00019452,2]
[323340437,1713906645032,-500.0,0.00019452,2]
[323340439,1713906645041,-1530.74,0.00019452,2]
[323340441,1713906645050,-500.0,0.00019452,2]
[323340443,1713906645060,-500.0,0.00019452,2]
[323340445,1713906645069,-1003.63,0.00019452,2]
[323340447,1713906645079,-1106.45,0.00019452,2]
[323340449,1713906645090,-500.0,0.00019452,2]
[323340450,1713906645100,-500.0,0.00019452,2]
[323340452,1713906645109,-1277.89,0.00019452,2]
[323340454,1713906645120,-500.0,0.00019452,2]
[323340456,1713906645129,-210.11143249,0.00019452,2]
[323340458,1713906645138,-500.0,0.00019452,2]
[323340459,1713906645147,-886.08,0.00019452,2]
[323340461,1713906645156,-500.0,0.00019452,2]
[323340463,1713906645166,-500.0,0.00019452,2]
[323340465,1713906645175,-500.0,0.00019452,2]
[323340467,1713906645185,-714.28,0.00019452,2]
[323340469,1713906645197,-500.0,0.00019452,2]
[323340471,1713906645207,-500.0,0.00019452,2]
[323340473,1713906645216,-353.22339509,0.00019452,2]
[323340474,1713906645225,-1022.02,0.00019452,2]
[323340476,1713906645233,-546.63,0.00019452,2]
[323340478,1713906645242,-500.0,0.00019452,2]
[323340480,1713906645252,-500.0,0.00019452,2]
[323340482,1713906645261,-500.0,0.00019452,2]
[323340484,1713906645270,-905.67,0.00019452,2]
[323340486,1713906645279,-500.0,0.00019452,2]
[323340487,1713906645288,-500.0,0.00019452,2]
[323340489,1713906645298,-711.87,0.00019452,2]
[323340491,1713906645307,-500.0,0.00019452,2]
[323340493,1713906645316,-198.42895521,0.00019452,2]
[323340495,1713906645325,-850.29,0.00019452,2]
[323340497,1713906645339,-552.33690035,0.00019452,2]
[323340499,1713906645349,-500.0,0.00019452,2]
[323340501,1713906645358,-500.0,0.00019452,2]
[323340503,1713906645368,-3203.89,0.00019452,2]
[323340504,1713906645377,-500.0,0.00019452,2]
[323340506,1713906645386,-554.02,0.00019452,2]
[323340508,1713906645396,-949.8,0.00019452,2]
[323340510,1713906645406,-1567.71,0.00019452,2]
[323340512,1713906645415,-500.0,0.00019452,2]
[323340514,1713906645424,-1038.44,0.00019452,2]
[323340515,1713906645433,-565.92825141,0.00019452,2]
[323340517,1713906645442,-500.0,0.00019452,2]
[323340519,1713906645451,-500.0,0.00019452,2]
[323340521,1713906645461,-500.0,0.00019452,2]
[323340523,1713906645470,-500.0,0.00019452,2]
[323340525,1713906645478,-500.0,0.00019452,2]
[323340526,1713906645487,-500.0,0.00019452,2]
[323340528,1713906645496,-500.0,0.00019452,2]
[323340530,1713906645506,-500.0,0.00019452,2]
[323340532,1713906645515,-500.0,0.00019452,2]
[323340534,1713906645524,-924.22,0.00019452,2]
[323340536,1713906645533,-902.89,0.00019452,2]
[323340537,1713906645542,-500.0,0.00019452,2]
[323340539,1713906645551,-993.79,0.00019452,2]
[323340541,1713906645560,-554.07,0.00019452,2]
[323340543,1713906645569,-500.0,0.00019452,2]
[323340545,1713906645579,-786.38,0.00019452,2]
[323340547,1713906645588,-726.49,0.00019452,2]
[323340549,1713906645597,-170.1623976,0.00019452,2]
[323340550,1713906645605,-500.0,0.00019452,2]
[323340552,1713906645615,-531.87,0.00019452,2]
[323340554,1713906645624,-2258.36,0.00019452,2]
[323340556,1713906645634,-500.0,0.00019452,2]
[323340558,1713906645643,-500.0,0.00019452,2]
[323340559,1713906645652,-1423.75,0.00019452,2]
[323340561,1713906645661,-500.0,0.00019452,2]
[323340563,1713906645670,-900.74,0.00019452,2]
[323340565,1713906645679,-1478.54,0.00019452,2]
[323340567,1713906645688,-500.0,0.00019452,2]
[323340568,1713906645698,-500.0,0.00019452,2]
[323340570,1713906645707,-500.0,0.00019452,2]
[323340572,1713906645716,-1668.39,0.00019452,2]
[323340574,1713906645725,-678.36,0.00019452,2]
[323340576,1713906645735,-1376.89,0.00019452,2]
[323340578,1713906645745,-237.4846105,0.00019452,2]
[323340580,1713906645755,-500.0,0.00019452,2]
[323340582,1713906645764,-500.0,0.00019452,2]
[323340584,1713906645774,-500.0,0.00019452,2]
[323340586,1713906645783,-2107.07,0.00019452,2]
[323340588,1713906645792,-1737.0,0.00019452,2]
[323340589,1713906645802,-500.0,0.00019452,2]
[323340591,1713906645811,-1067.53,0.00019452,2]
[323340593,1713906645822,-500.0,0.00019452,2]
[323340595,1713906645833,-532.06,0.00019452,2]
[323340597,1713906645842,-692.64,0.00019452,2]
[323340599,1713906645851,-500.0,0.00019452,2]
[323340600,1713906645860,-500.0,0.00019452,2]
[323340602,1713906645870,-1195.52,0.00019452,2]
[323340604,1713906645880,-500.0,0.00019452,2]
[323340606,1713906645890,-1607.99,0.00019452,2]
[323340608,1713906645899,-500.0,0.00019452,2]
[323340610,1713906645908,-500.0,0.00019452,2]
[323340612,1713906645917,-860.82,0.00019452,2]
[323340614,1713906645926,-500.0,0.00019452,2]
[323340616,1713906645936,-500.0,0.00019452,2]
[323340618,1713906645945,-531.87,0.00019452,2]
[323340620,1713906645954,-721.01,0.00019452,2]
[323340621,1713906645964,-500.0,0.00019452,2]
[323340623,1713906645974,-500.0,0.00019452,2]
[323340625,1713906645984,-1486.41,0.00019452,2]
[323340627,1713906645994,-500.0,0.00019452,2]
[323340629,1713906646003,-509.44398326,0.00019452,2]
[323340631,1713906646012,-500.0,0.00019452,2]
[323340633,1713906646022,-510.08951815,0.00019452,2]
[323340635,1713906646031,-500.0,0.00019452,2]
[323340637,1713906646040,-500.0,0.00019452,2]
[323340638,1713906646049,-500.0,0.00019452,2]
[323340640,1713906646058,-1236.23,0.00019452,2]
[323340642,1713906646067,-500.0,0.00019452,2]
[323340644,1713906646077,-2278.12,0.00019452,2]
[323340646,1713906646086,-500.0,0.00019452,2]
[323340648,1713906646095,-500.0,0.00019452,2]
[323340650,1713906646104,-500.0,0.00019452,2]
[323340652,1713906646114,-10286.09,0.00019452,2]
[323340654,1713906646125,-500.0,0.00019452,2]
[323340657,1713906646134,-1883.18,0.00019452,2]
[323340661,1713906646142,-944.84,0.00019452,2]
[323340663,1713906646152,-500.0,0.00019452,2]
[323340665,1713906646161,-574.81,0.00019452,2]
[323340667,1713906646170,-1124.79,0.00019452,2]
[323340669,1713906646179,-745.02,0.00019452,2]
[323340670,1713906646187,-500.0,0.00019452,2]
[323340672,1713906646199,-1217.1,0.00019452,2]
[323340674,1713906646208,-500.0,0.00019452,2]
[323340676,1713906646217,-500.0,0.00019452,2]
[323340678,1713906646226,-674.83,0.00019452,2]
[323340680,1713906646235,-3698.81,0.00019452,2]
[323340682,1713906646244,-158.26052004,0.00019452,2]
[323340683,1713906646253,-502.10853275,0.00019452,2]
[323340685,1713906646262,-713.93,0.00019452,2]
[323340687,1713906646271,-500.0,0.00019452,2]
[323340689,1713906646280,-500.0,0.00019452,2]
[323340691,1713906646289,-7456.02,0.00019452,2]
[323340693,1713906646298,-500.0,0.00019452,2]
[323340695,1713906646307,-500.0,0.00019452,2]
[323340697,1713906646316,-567.42,0.00019452,2]
[323340698,1713906646325,-500.0,0.00019452,2]
[323340700,1713906646335,-500.0,0.00019452,2]
[323340702,1713906646344,-153.2257891,0.00019452,2]
[323340704,1713906646354,-500.0,0.00019452,2]
[323340706,1713906646363,-7031.43,0.00019452,2]
[323340708,1713906646372,-500.0,0.00019452,2]
[323340710,1713906646382,-500.0,0.00019452,2]
[323340712,1713906646391,-500.0,0.00019452,2]
[323340713,1713906646400,-760.73,0.00019452,2]
[323340715,1713906646410,-1432.34,0.00019452,2]
[323340717,1713906646419,-3253.21,0.00019452,2]
[323340719,1713906646428,-500.0,0.00019452,2]
[323340721,1713906646437,-5262.87,0.00019452,2]
[323340723,1713906646446,-4015.64,0.00019452,2]
[323340725,1713906646456,-928.49,0.00019452,2]
[323340727,1713906646465,-500.0,0.00019452,2]
[323340728,1713906646474,-500.0,0.00019452,2]
[323340730,1713906646484,-500.0,0.00019452,2]
[323340732,1713906646494,-500.0,0.00019452,2]
[323340734,1713906646503,-500.0,0.00019452,2]
[323340736,1713906646512,-633.96,0.00019452,2]
[323340738,1713906646521,-1467.47,0.00019452,2]
[323340740,1713906646530,-500.0,0.00019452,2]
[323340742,1713906646539,-500.0,0.00019452,2]
[323340743,1713906646549,-227.92711408,0.00019452,2]
[323340745,1713906646558,-492.78831422,0.00019452,2]
[323340747,1713906646568,-500.0,0.00019452,2]
[323340749,1713906646577,-626.38,0.00019452,2]
[323340751,1713906646586,-944.49,0.00019452,2]
[323340753,1713906646595,-500.0,0.00019452,2]
[323340755,1713906646604,-583.992907,0.00019452,2]
[323340756,1713906646614,-1655.39,0.00019452,2]
[323340758,1713906646623,-500.0,0.00019452,2]
[323340760,1713906646632,-500.0,0.00019452,2]
[323340762,1713906646641,-500.0,0.00019452,2]
[323340764,1713906646650,-500.0,0.00019452,2]
[323340766,1713906646659,-946.8,0.00019452,2]
[323340768,1713906646668,-2551.94,0.00019452,2]
[323340769,1713906646677,-2595.58,0.00019452,2]
[323340771,1713906646686,-500.0,0.00019452,2]
[323340773,1713906646695,-500.0,0.00019452,2]
[323340775,1713906646704,-1746.36,0.00019452,2]
[323340777,1713906646714,-500.0,0.00019452,2]
[323340779,1713906646723,-814.3,0.00019452,2]
[323340781,1713906646733,-500.0,0.00019452,2]
[323340782,1713906646742,-599.33,0.00019452,2]
[323340784,1713906646751,-500.0,0.00019452,2]
[323340786,1713906646760,-500.0,0.00019452,2]
[323340788,1713906646769,-500.0,0.00019452,2]
[323340790,1713906646779,-817.94,0.00019452,2]
[323340792,1713906646788,-683.42,0.00019452,2]
[323340794,1713906646797,-500.0,0.00019452,2]
[323340795,1713906646806,-543.56,0.00019452,2]
[323340796,1713906646816,-500.0,0.00019452,2]
[323340797,1713906646825,-24227.66,0.00019452,2]
[323340798,1713906646837,-500.0,0.00019452,2]
[323340799,1713906646846,-500.0,0.00019452,2]
[323340800,1713906646855,-543.7,0.00019452,2]
[323340802,1713906646865,-500.0,0.00019452,2]
[323340803,1713906646874,-500.0,0.00019452,2]
[323340804,1713906646883,-892.02,0.00019452,2]
[323340806,1713906646892,-2080.56,0.00019452,2]
[323340807,1713906646901,-7466.61,0.00019452,2]
[323340808,1713906646910,-500.0,0.00019452,2]
[323340810,1713906646919,-10964.76,0.00019452,2]
[323340812,1713906646928,-2008.81,0.00019452,2]
[323340814,1713906646937,-6940.32,0.00019452,2]
[323340815,1713906646947,-500.0,0.00019452,2]
[323340817,1713906646957,-726.26,0.00019452,2]
[323340818,1713906646965,-500.0,0.00019452,2]
[323340820,1713906646974,-888.98,0.00019452,2]
[323340821,1713906646984,-500.0,0.00019452,2]
[323340823,1713906646993,-500.0,0.00019452,2]
[323340825,1713906647002,-500.0,0.00019452,2]
[323340826,1713906647010,-1789.94,0.00019452,2]
[323340828,1713906647019,-500.0,0.00019452,2]
[323340829,1713906647028,-17149.67,0.00019452,2]
[323340831,1713906647038,-14555.01,0.00019452,2]
[323340833,1713906647047,-500.0,0.00019452,2]
[323340834,1713906647056,-500.0,0.00019452,2]
[323340836,1713906647066,-1180.31,0.00019452,2]
[323340838,1713906647075,-7963.5,0.00019452,2]
[323340839,1713906647086,-500.0,0.00019452,2]
[323340840,1713906647095,-221.693,0.00019541,2]
[323340841,1713906647104,-417.0,0.00019541,2]
[323340842,1713906647116,-2258.0,0.00019559,2]
[323340843,1713906647126,-155.2596708,0.00019689,2]
[323340844,1713906647135,-2258.0,0.00019692,2]
[323340845,1713906647145,-302.6951423,0.00019694,2]
[323340846,1713906647154,-500.0,0.00019726,2]
[323340847,1713906647163,-500.0,0.00019726,2]
[323340848,1713906647173,-500.0,0.00019726,2]
[323340849,1713906647181,-520.67,0.00019726,2]
[323340850,1713906647190,-500.0,0.00019726,2]
[323340851,1713906647200,-500.0,0.00019726,2]
[323340852,1713906647210,-657.21,0.00019726,2]
[323340853,1713906647219,-904.57,0.00019726,2]
[323340854,1713906647227,-163.76129234,0.00019726,2]
[323340855,1713906647236,-513.66,0.00019726,2]
[323340856,1713906647246,-500.0,0.00019726,2]
[323340857,1713906647256,-580.19,0.00019726,2]
[323340858,1713906647265,-589.6,0.00019726,2]
[323340864,1713906647397,-500.0,0.00019726,2]
[323340866,1713906647407,-500.0,0.00019726,2]
[323340867,1713906647417,-1834.44,0.00019726,2]
[323340868,1713906647426,-500.0,0.00019726,2]
[323340869,1713906647435,-500.0,0.00019726,2]
[323340870,1713906647445,-500.0,0.00019726,2]
[323340871,1713906647454,-500.0,0.00019726,2]
[323340872,1713906647465,-500.0,0.00019726,2]
[323340873,1713906647475,-573.5403824,0.00019726,2]
[323340874,1713906647485,-500.0,0.00019726,2]
[323340875,1713906647495,-981.79,0.00019726,2]
[323340876,1713906647505,-500.0,0.00019726,2]
[323340877,1713906647514,-500.0,0.00019726,2]
[323340878,1713906647524,-500.0,0.00019726,2]
[323340879,1713906647533,-500.0,0.00019726,2]
[323340880,1713906647542,-527.18,0.00019726,2]
[323340881,1713906647554,-500.0,0.00019726,2]
[323340882,1713906647564,-500.0,0.00019726,2]
[323340883,1713906647575,-500.0,0.00019726,2]
[323340884,1713906647585,-500.0,0.00019726,2]
[323340885,1713906647594,-493.93279549,0.00019726,2]
[323340886,1713906647604,-500.0,0.00019726,2]
[323340887,1713906647613,-504.27,0.00019726,2]
[323340888,1713906647622,-500.0,0.00019726,2]
[323340889,1713906647632,-500.0,0.00019726,2]
[323340890,1713906647641,-500.0,0.00019726,2]
[323340891,1713906647651,-500.0,0.00019726,2]
[323340892,1713906647660,-500.0,0.00019726,2]
[323340893,1713906647670,-500.0,0.00019726,2]
[323340894,1713906647679,-500.0,0.00019726,2]
[323340895,1713906647689,-500.0,0.00019726,2]
[323340896,1713906647699,-500.0,0.00019726,2]
[323340897,1713906647708,-1837.74,0.00019726,2]
[323340898,1713906647717,-2077.29,0.00019726,2]
[323340899,1713906647726,-500.0,0.00019726,2]
[323340900,1713906647735,-500.0,0.00019726,2]
[323340901,1713906647744,-500.0,0.00019726,2]
[323340902,1713906647753,-500.0,0.00019726,2]
[323340903,1713906647762,-500.0,0.00019726,2]
[323340904,1713906647771,-500.0,0.00019726,2]
[323340905,1713906647781,-500.0,0.00019726,2]
[323340906,1713906647790,-500.0,0.00019726,2]
[323340907,1713906647799,-847.99,0.00019726,2]
[323340908,1713906647808,-500.0,0.00019726,2]
[323340909,1713906647817,-1200.21,0.00019726,2]
[323340910,1713906647826,-500.0,0.00019726,2]
[323340911,1713906647836,-1530.74,0.00019726,2]
[323340912,1713906647845,-500.0,0.00019726,2]
[323340913,1713906647854,-500.0,0.00019726,2]
[323340914,1713906647863,-1003.63,0.00019726,2]
[323340915,1713906647872,-1106.45,0.00019726,2]
[323340916,1713906647881,-206.6927002,0.00019726,2]
[323340917,1713906647890,-500.0,0.00019726,2]
[323340918,1713906647899,-1277.89,0.00019726,2]
[323340919,1713906647909,-500.0,0.00019726,2]
[323340920,1713906647917,-886.08,0.00019726,2]
[323340922,1713906647927,-500.0,0.00019726,2]
[323340923,1713906647935,-500.0,0.00019726,2]
[323340925,1713906647945,-500.0,0.00019726,2]
[323340926,1713906647955,-714.28,0.00019726,2]
[323340927,1713906647965,-500.0,0.00019726,2]
[323340928,1713906647974,-500.0,0.00019726,2]
[323340929,1713906647983,-1022.02,0.00019726,2]
[323340930,1713906647993,-546.63,0.00019726,2]
[323340931,1713906648002,-500.0,0.00019726,2]
[323340932,1713906648012,-500.0,0.00019726,2]
[323340933,1713906648021,-500.0,0.00019726,2]
[323340934,1713906648030,-905.67,0.00019726,2]
[323340935,1713906648040,-500.0,0.00019726,2]
[323340936,1713906648049,-500.0,0.00019726,2]
[323340937,1713906648058,-711.87,0.00019726,2]
[323340938,1713906648067,-500.0,0.00019726,2]
[323340939,1713906648076,-850.29,0.00019726,2]
[323340940,1713906648086,-500.0,0.00019726,2]
[323340941,1713906648095,-500.0,0.00019726,2]
[323340942,1713906648104,-3203.89,0.00019726,2]
[323340943,1713906648117,-500.0,0.00019726,2]
[323340944,1713906648127,-554.02,0.00019726,2]
[323340945,1713906648137,-949.8,0.00019726,2]
[323340946,1713906648147,-1567.71,0.00019726,2]
[323340948,1713906648157,-500.0,0.00019726,2]
[323340950,1713906648166,-1038.44,0.00019726,2]
[323340952,1713906648176,-500.0,0.00019726,2]
[323340954,1713906648186,-500.0,0.00019726,2]
[323340956,1713906648195,-500.0,0.00019726,2]
[323340958,1713906648204,-500.0,0.00019726,2]
[323340960,1713906648213,-500.0,0.00019726,2]
[323340962,1713906648223,-500.0,0.00019726,2]
[323340964,1713906648232,-500.0,0.00019726,2]
[323340966,1713906648241,-500.0,0.00019726,2]
[323340967,1713906648250,-500.0,0.00019726,2]
[323340968,1713906648260,-924.22,0.00019726,2]
[323340970,1713906648269,-902.89,0.00019726,2]
[323340972,1713906648278,-500.0,0.00019726,2]
[323340973,1713906648287,-993.79,0.00019726,2]
[323340974,1713906648296,-554.07,0.00019726,2]
[323340975,1713906648306,-500.0,0.00019726,2]
[323340976,1713906648315,-786.38,0.00019726,2]
[323340977,1713906648325,-726.49,0.00019726,2]
[323340978,1713906648335,-500.0,0.00019726,2]
[323340979,1713906648345,-531.87,0.00019726,2]
[323340980,1713906648354,-500.0,0.00019726,2]
[323340981,1713906648364,-2258.36,0.00019726,2]
[323340982,1713906648373,-500.0,0.00019726,2]
[323340983,1713906648382,-1423.75,0.00019726,2]
[323340984,1713906648391,-500.0,0.00019726,2]
[323340985,1713906648401,-900.74,0.00019726,2]
[323340986,1713906648410,-1478.54,0.00019726,2]
[323340987,1713906648419,-500.0,0.00019726,2]
[323340988,1713906648429,-500.0,0.00019726,2]
[323340989,1713906648438,-500.0,0.00019726,2]
[323340990,1713906648448,-1668.39,0.00019726,2]
[323340991,1713906648458,-678.36,0.00019726,2]
[323340992,1713906648467,-1376.89,0.00019726,2]
[323340993,1713906648477,-500.0,0.00019726,2]
[323340994,1713906648487,-500.0,0.00019726,2]
[323340995,1713906648496,-500.0,0.00019726,2]
[323340996,1713906648506,-2107.07,0.00019726,2]
[323340997,1713906648515,-1737.0,0.00019726,2]
[323340998,1713906648525,-485.33448319,0.00019726,2]
[323340999,1713906648534,-1067.53,0.00019726,2]
[323341000,1713906648543,-500.0,0.00019726,2]
[323341001,1713906648553,-532.06,0.00019726,2]
[323341002,1713906648562,-692.64,0.00019726,2]
[323341003,1713906648571,-500.0,0.00019726,2]
[323341004,1713906648581,-500.0,0.00019726,2]
[323341005,1713906648591,-1195.52,0.00019726,2]
[323341006,1713906648601,-500.0,0.00019726,2]
[323341007,1713906648611,-1607.99,0.00019726,2]
[323341008,1713906648620,-287.98270731,0.00019726,2]
[323341009,1713906648629,-500.0,0.00019726,2]
[323341010,1713906648638,-860.82,0.00019726,2]
[323341011,1713906648647,-500.0,0.00019726,2]
[323341012,1713906648656,-500.0,0.00019726,2]
[323341013,1713906648665,-531.87,0.00019726,2]
[323341014,1713906648674,-721.01,0.00019726,2]
[323341015,1713906648683,-500.0,0.00019726,2]
[323341016,1713906648692,-500.0,0.00019726,2]
[323341017,1713906648702,-1486.41,0.00019726,2]
[323341018,1713906648710,-500.0,0.00019726,2]
[323341019,1713906648719,-500.0,0.00019726,2]
[323341020,1713906648728,-500.0,0.00019726,2]